lending/lending_fUSD_20240417
["ID","MTS","AMOUNT","RATE_DAILY","PERIOD"]
[322838002,1713381713053,760.31,0.00012782,2]
[322838003,1713381713486,760.31,0.00015046,2]
[322838004,1713381726739,966.90255053,0.00015502,2]
[322838005,1713381798176,7122.3328428,0.00015425,2]
[322838006,1713381912507,306.75,0.00015416,2]
[322838007,1713381928790,851.76,0.00015069,2]
[322838008,1713381930590,236.490994,0.00015342,2]
[322838009,1713381938557,737.6,0.00014686,2]
[322838010,1713381950376,1500.0,0.00015476,2]
[322838011,1713381951249,1500.0,0.00015353,2]
[322838012,1713381957394,5304.6116,0.00015415,2]
[322838013,1713381967986,300.0,0.00015409,2]
[322838014,1713381968088,300.0,0.00015438,2]
[322838015,1713382010390,1500.0,0.0001547,2]
[322838016,1713382010423,1500.0,0.00015482,2]
[322838017,1713382010469,1500.0,0.00015355,2]
[322838018,1713382010642,1500.0,0.00015294,2]
[322838019,1713382010716,1500.0,0.00015452,2]
[322838020,1713382011239,1500.0,0.00015282,2]
[322838021,1713382012348,254.0,0.00014831,2]
[322838022,1713382012601,254.0,0.00014872,2]
[322838023,1713382012840,254.0,0.00014913,2]
[322838024,1713382013314,254.0,0.00014953,2]
[322838025,1713382013399,254.0,0.00014994,2]
[322838026,1713382013607,254.0,0.00015035,2]
[322838027,1713382013812,254.0,0.00015075,2]
[322838028,1713382014130,254.0,0.00015116,2]
[322838029,1713382014291,254.0,0.00015157,2]
[322838030,1713382014544,254.0,0.00015197,2]
[322838031,1713382015362,254.0,0.00015238,2]
[322838032,1713382015660,254.0,0.00015279,2]
[322838033,1713382015923,254.0,0.00015319,2]
[322838034,1713382016153,254.0,0.0001536,2]
[322838035,1713382016418,254.0,0.00015401,2]
[322838036,1713382016904,254.0,0.00015442,2]
[322838037,1713382017140,254.0,0.00015482,2]
[322838038,1713382019730,170.3777401,0.00015426,2]
[322838039,1713382035836,150.0,0.00015393,2]
[322838040,1713382078374,6232.04123745,0.00015425,2]
[322838041,1713382088229,150.0,0.00015298,2]
[322838042,1713382088282,150.0,0.0001539,2]
[322838043,1713382088316,150.0,0.00015488,2]
[322838044,1713382088351,150.0,0.00015413,2]
[322838045,1713382088397,150.0,0.0001532,2]
[322838046,1713382088434,150.0,0.0001542,2]
[322838047,1713382088468,150.0,0.00015502,2]
[322838048,1713382088505,150.0,0.00015449,2]
[322838049,1713382088538,150.0,0.00015463,2]
[322838050,1713382088574,150.0,0.00015283,2]
[322838051,1713382088607,150.0,0.00015402,2]
[322838052,1713382088673,150.0,0.0001532,2]
[322838053,1713382088706,150.0,0.00015496,2]
[322838054,1713382088742,150.0,0.00015402,2]
[322838055,1713382088775,150.0,0.00015315,2]
[322838056,1713382088834,150.0,0.00015316,2]
[322838057,1713382088865,150.0,0.00015366,2]
[322838058,1713382088896,150.0,0.00015446,2]
[322838059,1713382088928,150.0,0.00015377,2]
[322838060,1713382088960,150.0,0.00015282,2]
[322838061,1713382089012,150.0,0.00015371,2]
[322838062,1713382089047,150.0,0.00015413,2]
[322838063,1713382089081,150.0,0.00015244,2]
[322838064,1713382089113,150.0,0.00015372,2]
[322838065,1713382089145,150.0,0.00015435,2]
[322838066,1713382089179,150.0,0.00015473,2]
[322838067,1713382089211,150.0,0.00015351,2]
[322838068,1713382089245,150.0,0.00015477,2]
[322838069,1713382089276,150.0,0.00015374,2]
[322838070,1713382089315,150.0,0.00015477,2]
[322838071,1713382089347,150.0,0.00015362,2]
[322838072,1713382089382,150.0,0.00015396,2]
[322838073,1713382089421,150.0,0.00015406,2]
[322838074,1713382089487,150.0,0.00015354,2]
[322838075,1713382089523,150.0,0.00015337,2]
[322838076,1713382089558,150.0,0.00015451,2]
[322838077,1713382089591,150.0,0.00015371,2]
[322838078,1713382089624,150.0,0.00015249,2]
[322838079,1713382089658,150.0,0.00015433,2]
[322838080,1713382089691,150.0,0.00015493,2]
[322838081,1713382089731,150.0,0.00015492,2]
[322838082,1713382089769,150.0,0.00015475,2]
[322838083,1713382089821,150.0,0.00015327,2]
[322838084,1713382089872,150.0,0.00015477,2]
[322838085,1713382089904,150.0,0.0001547,2]
[322838086,1713382089936,150.0,0.00015408,2]
[322838087,1713382089968,227.27209581,0.00015412,2]
[322838088,1713382090013,150.0,0.00015456,2]
[322838089,1713382090271,150.0,0.00015251,2]
[322838090,1713382090306,150.0,0.00015351,2]
[322838091,1713382090338,150.0,0.00015259,2]
[322838092,1713382090369,150.0,0.00015502,2]
[322838093,1713382090416,150.0,0.00015296,2]
[322838094,1713382090463,150.0,0.00015265,2]
[322838095,1713382090496,150.0,0.00015494,2]
[322838096,1713382090527,150.0,0.00015387,2]
[322838097,1713382090914,150.0,0.00015487,2]
[322838098,1713382090947,150.0,0.00015352,2]
[322838099,1713382090981,150.0,0.00015276,2]
[322838100,1713382091013,150.0,0.00015399,2]
[322838101,1713382091045,150.0,0.00015345,2]
[322838102,1713382091096,150.0,0.00015307,2]
[322838103,1713382091148,150.0,0.00015244,2]
[322838104,1713382091179,150.0,0.0001544,2]
[322838105,1713382091214,150.0,0.00015377,2]
[322838106,1713382091248,150.0,0.00015361,2]
[322838107,1713382091279,150.0,0.00015256,2]
[322838108,1713382091313,150.0,0.00015459,2]
[322838109,1713382091358,150.0,0.00015475,2]
[322838110,1713382091393,150.0,0.00015293,2]
[322838111,1713382091439,150.0,0.00015446,2]
[322838112,1713382091470,150.0,0.0001542,2]
[322838113,1713382091506,150.0,0.00015386,2]
[322838114,1713382091557,150.0,0.00015303,2]
[322838115,1713382091593,150.0,0.00015371,2]
[322838116,1713382091628,150.0,0.00015364,2]
[322838117,1713382091658,150.0,0.00015387,2]
[322838118,1713382091769,150.0,0.0001529,2]
[322838119,1713382091843,150.0,0.00015287,2]
[322838120,1713382091895,150.0,0.00015475,2]
[322838121,1713382091927,150.0,0.00015246,2]
[322838122,1713382091974,150.0,0.00015481,2]
[322838123,1713382092007,150.0,0.00015335,2]
[322838124,1713382092039,150.0,0.00015385,2]
[322838125,1713382092087,150.0,0.00015492,2]
[322838126,1713382092141,150.0,0.00015309,2]
[322838127,1713382092174,150.0,0.00015461,2]
[322838128,1713382092227,150.0,0.00015468,2]
[322838129,1713382092261,150.0,0.00015463,2]
[322838130,1713382092346,150.0,0.00015363,2]
[322838131,1713382092378,150.0,0.00015437,2]
[322838132,1713382092425,150.0,0.00015312,2]
[322838133,1713382092460,150.0,0.0001535,2]
[322838134,1713382092496,150.0,0.00015285,2]
[322838135,1713382092536,150.0,0.00015377,2]
[322838136,1713382095946,150.0,0.00015289,2]
[322838137,1713382095986,150.0,0.00015378,2]
[322838138,1713382096151,150.0,0.0001543,2]
[322838139,1713382096218,150.0,0.00015395,2]
[322838140,1713382096263,150.0,0.00015258,2]
[322838141,1713382096315,150.0,0.00015261,2]
[322838142,1713382096365,150.0,0.0001534,2]
[322838143,1713382096398,150.0,0.00015264,2]
[322838144,1713382096447,150.0,0.00015261,2]
[322838145,1713382096481,150.0,0.00015287,2]
[322838146,1713382096549,150.0,0.00015428,2]
[322838147,1713382096609,150.0,0.00015316,2]
[322838148,1713382096658,150.0,0.00015434,2]
[322838149,1713382096723,150.0,0.00015316,2]
[322838150,1713382096795,150.0,0.00015282,2]
[322838151,1713382096828,150.0,0.00015367,2]
[322838152,1713382096894,150.0,0.00015293,2]
[322838153,1713382096957,150.0,0.00015336,2]
[322838154,1713382097300,150.0,0.00015318,2]
[322838155,1713382097355,150.0,0.00015403,2]
[322838156,1713382097390,150.0,0.00015414,2]
[322838157,1713382097423,150.0,0.0001539,2]
[322838158,1713382097480,150.0,0.00015477,2]
[322838159,1713382097556,150.0,0.00015336,2]
[322838160,1713382097607,150.0,0.00015298,2]
[322838161,1713382097648,150.0,0.00015324,2]
[322838162,1713382097697,150.0,0.0001542,2]
[322838163,1713382111111,250.0,0.00014711,2]
[322838164,1713382119717,1500.0,0.00015345,2]
[322838165,1713382132999,192.9581475,0.00015426,2]
[322838166,1713382139921,150.0,0.00015319,2]
[322838167,1713382140071,150.0,0.00015449,2]
[322838168,1713382140132,150.0,0.00015425,2]
[322838169,1713382140232,150.0,0.00015253,2]
[322838170,1713382140298,150.0,0.00015463,2]
[322838171,1713382188935,705.07,0.0001271,2]
[322838172,1713382189325,705.07,0.00014974,2]
[322838173,1713382226413,212.841894,0.00015342,2]
[322838190,1713382232396,-1982.36922281,0.00015506,2]
[322838191,1713382232406,-1982.36922281,0.00015506,2]
[322838192,1713382232415,-1982.36922281,0.00015507,2]
[322838193,1713382232424,-150.0,0.0001551,2]
[322838194,1713382232433,-150.0,0.00015513,2]
[322838195,1713382232442,-150.14,0.00015515,2]
[322838196,1713382232452,-150.14,0.00015516,2]
[322838197,1713382232461,-150.14,0.00015516,2]
[322838198,1713382232470,-150.14,0.00015516,2]
[322838199,1713382232480,-150.14,0.00015516,2]
[322838200,1713382232489,-164.60549446,0.0001552,2]
[322838201,1713382232498,-254.0,0.00015523,2]
[322838202,1713382232507,-155.80892173,0.00015523,2]
[322838203,1713382232516,-247.42482427,0.00015523,2]
[322838204,1713382232525,-341.29578682,0.00015523,2]
[322838205,1713382232534,-247.87415147,0.00015523,2]
[322838206,1713382232543,-645.50691372,0.00015523,2]
[322838207,1713382232551,-3675.37677336,0.00015523,2]
[322838208,1713382232560,-299.48029844,0.00015523,2]
[322838209,1713382232570,-762.52965112,0.00015523,2]
[322838210,1713382232802,-208.21685267,0.00015523,2]
[322838211,1713382232838,-2515.27337188,0.00015523,2]
[322838212,1713382232849,-181.83985142,0.00015523,2]
[322838213,1713382232859,-365.80477657,0.00015523,2]
[322838214,1713382232871,-249.10410252,0.00015523,2]
[322838215,1713382232881,-232.36737813,0.00015524,2]
[322838216,1713382232892,-3526.56624269,0.00015524,2]
[322838217,1713382232903,-5260.92583365,0.00015524,2]
[322838218,1713382232913,-35000.0,0.00015524,2]
[322838219,1713382232923,-315632.58361029,0.00015525,2]
[322838220,1713382232941,-61110.99999999,0.00015525,2]
[322838221,1713382232953,-348.06104,0.00015525,2]
[322838222,1713382232964,-904.2844798,0.00015525,2]
[322838223,1713382233045,-256.118468,0.00015525,2]
[322838224,1713382233058,-522.13920169,0.00015525,2]
[322838225,1713382233168,-13500.999995,0.00015525,2]
[322838235,1713382238214,-728.66522884,0.00015515,2]
[322838236,1713382238224,-153526.69148378,0.00015525,2]
[322838237,1713382238234,-75617.307,0.00015525,2]
[322838238,1713382238243,-75717.81,0.00015526,2]
[322838239,1713382238253,-499.99,0.00015526,2]
[322838240,1713382238262,-150.99,0.00015526,2]
[322838241,1713382238272,-150.99,0.00015526,2]
[322838242,1713382238282,-1061379.62061381,0.00015526,2]
[322838243,1713382238292,-800.0,0.00015534,2]
[322838244,1713382238301,-1314.64,0.00015534,2]
[322838245,1713382238310,-383.28446,0.0001555,2]
[322838246,1713382238319,-340.0000004,0.00015557,2]
[322838247,1713382238330,-728.66522884,0.00015561,2]
[322838248,1713382238343,-437.12580247,0.00015563,2]
[322838249,1713382238361,-254.0,0.00015564,2]
[322838250,1713382238370,-156.77873877,0.00015571,2]
[322838251,1713382238379,-309.60400246,0.00015571,2]
[322838252,1713382238388,-196.89901937,0.00015571,2]
[322838253,1713382238397,-491.45044814,0.00015571,2]
[322838254,1713382238408,-205.7728251,0.00015571,2]
[322838255,1713382238418,-266.1273035,0.00015571,2]
[322838256,1713382238429,-155.06018972,0.00015571,2]
[322838257,1713382238439,-211.84497049,0.00015571,2]
[322838258,1713382238448,-165.26188424,0.00015571,2]
[322838259,1713382238457,-155.0,0.00015571,2]
[322838260,1713382238466,-259.32312542,0.00015571,2]
[322838261,1713382238475,-314.33230979,0.00015571,2]
[322838262,1713382238484,-233.63015905,0.00015571,2]
[322838264,1713382238493,-163.88340812,0.00015571,2]
[322838266,1713382238502,-712.07859983,0.00015571,2]
[322838268,1713382238512,-156.95158875,0.00015571,2]
[322838270,1713382238521,-199.35452674,0.00015571,2]
[322838272,1713382238530,-174.87510252,0.00015571,2]
[322838274,1713382238540,-201.54399571,0.00015571,2]
[322838275,1713382238549,-168.80224381,0.00015571,2]
[322838276,1713382238558,-246.14081837,0.00015571,2]
[322838277,1713382238568,-233.03801742,0.00015571,2]
[322838278,1713382238577,-216.84655625,0.00015571,2]
[322838279,1713382238589,-1774.81593737,0.00015571,2]
[322838280,1713382238599,-305.60617377,0.00015571,2]
[322838281,1713382238608,-195.00376366,0.00015571,2]
[322838282,1713382238617,-208.69733515,0.00015571,2]
[322838283,1713382238628,-208.60029672,0.00015571,2]
[322838284,1713382238637,-295.56769844,0.00015571,2]
[322838285,1713382238648,-196.16678348,0.00015571,2]
[322838286,1713382238658,-326.37999617,0.00015571,2]
[322838287,1713382238668,-573.14137953,0.00015571,2]
[322838288,1713382238678,-2353.62009514,0.00015571,2]
[322838289,1713382238689,-2589.70273245,0.00015571,2]
[322838290,1713382238698,-219.26759137,0.00015571,2]
[322838291,1713382238708,-156.44102129,0.00015571,2]
[322838292,1713382238717,-161.51526491,0.00015571,2]
[322838293,1713382238726,-1530.74414327,0.00015571,2]
[322838294,1713382238737,-941.19979602,0.00015571,2]
[322838295,1713382238746,-539.99810698,0.00015571,2]
[322838296,1713382238756,-277.09289079,0.00015571,2]
[322838297,1713382238766,-788.87983033,0.00015571,2]
[322838298,1713382238777,-1298.43503542,0.00015571,2]
[322838299,1713382238786,-310.82433516,0.00015571,2]
[322838300,1713382238796,-875.91071407,0.00015571,2]
[322838301,1713382238806,-1412.15811484,0.00015571,2]
[322838302,1713382238817,-2069.43687102,0.00015571,2]
[322838303,1713382238827,-872.30467711,0.00015571,2]
[322838304,1713382238838,-201.15935733,0.00015571,2]
[322838305,1713382238847,-304.94622691,0.00015571,2]
[322838306,1713382238857,-226.15542109,0.00015571,2]
[322838307,1713382238867,-9683.96699636,0.00015571,2]
[322838308,1713382238876,-2828.72042309,0.00015571,2]
[322838309,1713382238886,-165.81,0.00015573,2]
[322838310,1713382238895,-254.0,0.00015604,2]
[322838311,1713382238906,-5839.42781353,0.00015676,2]
[322838312,1713382238915,-1437.470984,0.00015724,2]
[322838313,1713382238925,-167.89,0.00015831,2]
[322838314,1713382238935,-167.0,0.00015831,2]
[322838315,1713382238945,-167.0,0.00015831,2]
[322838316,1713382238955,-167.27,0.00015831,2]
[322838317,1713382238964,-383.28445,0.0001586,2]
[322838318,1713382238973,-3434.84236345,0.00015865,2]
[322838319,1713382238983,-2361.28864,0.0001588,2]
[322838320,1713382238992,-12176.42693304,0.00015925,2]
[322838321,1713382239001,-348.31,0.000161,2]
[322838322,1713382239010,-150.0,0.000161,2]
[322838323,1713382239020,-172.51,0.000161,2]
[322838324,1713382239029,-518.98,0.000161,2]
[322838325,1713382239039,-310.22,0.000161,2]
[322838326,1713382239049,-416.72,0.000161,2]
[322838327,1713382239059,-1662.75,0.00016116,2]
[322838328,1713382239069,-751.88395077,0.00016148,2]
[322838329,1713382239079,-212.841894,0.00016164,2]
[322838330,1713382239091,-383.28446,0.0001618,2]
[322838331,1713382239100,-6232.04123738,0.00016207,2]
[322838332,1713382239110,-165.93,0.00016254,2]
[322838333,1713382239120,-12176.42693304,0.00016423,2]
[322838334,1713382239129,-938.09,0.00016438,2]
[322838335,1713382239139,-167.0,0.00016484,2]
[322838336,1713382239148,-383.28446,0.0001649,2]
[322838337,1713382239158,-1223.11342604,0.000165,2]
[322838338,1713382239167,-2361.28864,0.0001651,2]
[322838339,1713382239177,-737.6,0.00016521,2]
[322838340,1713382239187,-328.0,0.00016524,2]
[322838341,1713382239196,-664.0,0.00016635,2]
[322838342,1713382239206,-239.29,0.00016681,2]
[322838343,1713382239215,-999.92,0.00016712,2]
[322838344,1713382239225,-170.37774006,0.00016795,2]
[322838345,1713382239234,-383.28445,0.000168,2]
[322838346,1713382239244,-150.14,0.00016812,2]
[322838347,1713382239254,-40011.4814,0.00016822,2]
[322838348,1713382239264,-100000.0,0.00016822,2]
[322838349,1713382239273,-12058.0,0.00016822,2]
[322838350,1713382239283,-41997.0,0.00016822,2]
[322838351,1713382239294,-167364.0,0.00016822,2]
[322838352,1713382239303,-12776.66806322,0.000169,2]
[322838353,1713382239313,-12176.42693304,0.0001692,2]
[322838354,1713382239323,-202.04789894,0.0001693,2]
[322838355,1713382239543,-10480.83987943,0.00016981,4]
[322838356,1713382239553,-212.841894,0.00016986,2]
[322838357,1713382239563,-6232.04123738,0.00016989,2]
[322838358,1713382239573,-150.14,0.0001699,2]
[322838359,1713382239583,-150.14,0.0001699,2]
[322838360,1713382239599,-150.14,0.0001699,2]
[322838361,1713382239609,-150.14,0.0001699,2]
[322838362,1713382239618,-150.14,0.0001699,2]
[322838363,1713382239628,-150.14,0.0001699,2]
[322838364,1713382239637,-728.66522884,0.0001699,2]
[322838365,1713382239647,-583.28552711,0.00016998,2]
[322838366,1713382239657,-197.74310659,0.00016998,2]
[322838367,1713382239667,-175.54408362,0.00016998,2]
[322838368,1713382239677,-198.87560465,0.00016998,2]
[322838369,1713382239687,-306.48325471,0.00016998,2]
[322838370,1713382239696,-212.22105203,0.00016998,2]
[322838371,1713382239706,-289.67464184,0.00016998,2]
[322838372,1713382239715,-185.70330087,0.00016998,2]
[322838373,1713382239725,-156.86508822,0.00016998,2]
[322838374,1713382239734,-284.73785417,0.00016998,2]
[322838375,1713382239742,-207.0044953,0.00016998,2]
[322838376,1713382239752,-213.40636856,0.00016998,2]
[322838377,1713382239762,-190.29937159,0.00016998,2]
[322838378,1713382239771,-289.83775221,0.00016998,2]
[322838379,1713382239781,-4507.69289639,0.00016998,2]
[322838380,1713382239791,-200.48603164,0.00016998,2]
[322838381,1713382239801,-155.0,0.00016998,2]
[322838382,1713382239811,-157.55832317,0.00016998,2]
[322838383,1713382239821,-203.95378758,0.00016998,2]
[322838390,1713382240069,-155.4190591,0.00016998,2]
[322838391,1713382240079,-177.84678279,0.00016998,2]
[322838392,1713382240092,-201.96589073,0.00016998,2]
[322838393,1713382240102,-285.54101335,0.00016998,2]
[322838394,1713382240112,-305.10050143,0.00016998,2]
[322838395,1713382240122,-185.58869574,0.00016998,2]
[322838397,1713382240132,-156.09882516,0.00016998,2]
[322838399,1713382240142,-233.11930563,0.00016998,2]
[322838400,1713382240151,-274.21250178,0.00016998,2]
[322838401,1713382240160,-172.18858734,0.00016998,2]
[322838402,1713382240170,-171.11372304,0.00016998,2]
[322838403,1713382240180,-161.47493751,0.00016998,2]
[322838404,1713382240189,-180.8794937,0.00016998,2]
[322838405,1713382240205,-309.95626901,0.00016998,2]
[322838406,1713382240216,-161.51701536,0.00016998,2]
[322838407,1713382240226,-155.25921222,0.00016998,2]
[322838408,1713382240235,-155.0,0.00016998,2]
[322838409,1713382240245,-155.11864282,0.00016998,2]
[322838410,1713382240255,-200.94348613,0.00016998,2]
[322838411,1713382240264,-504.84482552,0.00016999,2]
[322838412,1713382240275,-880700.33846247,0.00017,2]
[322838413,1713382240301,-1240.88458094,0.00017,2]
[322838414,1713382240313,-974.08067741,0.00017,2]
[322838415,1713382240352,-777090.32462479,0.00017,2]
[322838416,1713382240362,-263.13145596,0.0001703,2]
[322838417,1713382240372,-2361.28864,0.0001713,2]
[322838418,1713382240382,-167.0,0.00017137,2]
[322838419,1713382240391,-705.07,0.00017237,2]
[322838420,1713382240402,-2006.71042518,0.00017339,2]
[322838421,1713382240413,-2006.71042518,0.00017347,2]
[322838422,1713382240424,-2006.71042518,0.00017351,2]
[322838423,1713382240435,-2006.71042518,0.0001736,2]
[322838424,1713382240446,-2006.71042518,0.00017371,2]
[322838425,1713382240456,-2006.71042518,0.00017373,2]
[322838426,1713382240467,-2006.71042518,0.00017375,2]
[322838427,1713382240479,-2006.71042518,0.00017377,2]
[322838428,1713382240489,-2006.71042518,0.00017382,2]
[322838429,1713382240499,-12176.42693304,0.00017418,2]
[322838430,1713382240509,-2361.28864,0.0001776,2]
[322838431,1713382240520,-150.14,0.00017762,2]
[322838432,1713382240529,-6232.04123738,0.00017771,2]
[322838433,1713382240539,-167.0,0.00017791,2]
[322838434,1713382240548,-212.841894,0.00017808,2]
[322838435,1713382240558,-851.76,0.00017809,2]
[322838436,1713382240568,-150.14,0.0001787,2]
[322838437,1713382240577,-83365.12076135,0.0001788,2]
[322838438,1713382240587,-83365.12076134,0.0001788,2]
[322838439,1713382240604,-83365.12076134,0.0001788,2]
[322838440,1713382240613,-83365.12076134,0.0001788,2]
[322838441,1713382240624,-83365.12076134,0.0001788,2]
[322838442,1713382240634,-18170.50907587,0.0001788,2]
[322838443,1713382240643,-18170.50907585,0.0001788,2]
[322838444,1713382240653,-18170.50907585,0.0001788,2]
[322838445,1713382240663,-18170.50907585,0.0001788,2]
[322838446,1713382240673,-18170.50907585,0.0001788,2]
[322838447,1713382240682,-12176.42693304,0.00017915,2]
[322838448,1713382240691,-165.93,0.00017978,2]
[322838449,1713382240700,-155.63412667,0.00018,2]
[322838450,1713382240709,-186.46064633,0.00018,2]
[322838451,1713382240720,-300.55127308,0.00018,2]
[322838452,1713382240730,-155.0,0.00018,2]
[322838453,1713382240739,-12589.45723495,0.00018,2]
[322838454,1713382240748,-237.26587545,0.00018,2]
[322838455,1713382240758,-237.26587545,0.00018,2]
[322838456,1713382240768,-237.26587545,0.00018,2]
[322838457,1713382240778,-237.26587545,0.00018,2]
[322838458,1713382240788,-237.26587545,0.00018,2]
[322838459,1713382240798,-237.26587545,0.00018,2]
[322838460,1713382240809,-237.26587545,0.00018,2]
[322838461,1713382240818,-237.26587545,0.00018,2]
[322838462,1713382240828,-237.26587545,0.00018,2]
[322838463,1713382240842,-237.26587545,0.00018,2]
[322838464,1713382240853,-237.26587545,0.00018,2]
[322838465,1713382240863,-237.26587545,0.00018,2]
[322838466,1713382240873,-237.26587545,0.00018,2]
[322838467,1713382240884,-237.26587545,0.00018,2]
[322838468,1713382240893,-237.26587545,0.00018,2]
[322838469,1713382240903,-237.26587545,0.00018,2]
[322838470,1713382240912,-237.26587545,0.00018,2]
[322838471,1713382240922,-237.26587545,0.00018,2]
[322838472,1713382240932,-237.26587545,0.00018,2]
[322838473,1713382240941,-237.26587545,0.00018,2]
[322838474,1713382240951,-170.37774006,0.00018163,2]
[322838475,1713382240961,-150.14,0.0001829,2]
[322838476,1713382240970,-142148.77284634,0.000183,3]
[322838477,1713382240979,-737.6,0.00018357,2]
[322838478,1713382240989,-328.0,0.0001836,2]
[322838479,1713382240999,-200.0,0.00018361,2]
[322838480,1713382241008,-2361.28863,0.0001838,2]
[322838481,1713382241019,-12176.42693304,0.00018413,2]
[322838482,1713382241028,-167.0,0.00018444,2]
[322838483,1713382241037,-83365.12076134,0.00018467,2]
[322838484,1713382241047,-18170.50907585,0.00018467,2]
[322838485,1713382241057,-239.29,0.00018535,2]
[322838486,1713382241066,-6232.04123738,0.00018554,2]
[322838487,1713382241076,-364.0,0.000186,2]
[322838488,1713382241091,-212.841894,0.0001863,2]
[322838489,1713382241101,-1000.0,0.000188,2]
[322838490,1713382241111,-327.63343049,0.00018805,2]
[322838491,1713382241120,-1000.0,0.00018848,2]
[322838492,1713382241130,-539.0,0.0001885,2]
[322838493,1713382241139,-541.0,0.00018877,2]
[322838494,1713382241149,-5000.0,0.000189,2]
[322838495,1713382241158,-707.0,0.000189,2]
[322838496,1713382241168,-4385.56,0.000189,2]
[322838497,1713382241177,-3365.0,0.000189,2]
[322838498,1713382241187,-12176.42693304,0.0001891,2]
[322838499,1713382241196,-319.15900206,0.00018995,2]
[322838500,1713382241206,-2267.47388973,0.00018995,2]
[322838501,1713382241216,-155.0,0.00018995,2]
[322838502,1713382241225,-167.65540176,0.00018995,2]
[322838503,1713382241235,-155.0,0.00018995,2]
[322838504,1713382241244,-382.59201359,0.00019,2]
[322838505,1713382241254,-1550.0,0.00019,3]
[322838506,1713382241263,-150.14,0.00019065,2]
[322838507,1713382241272,-83365.12076134,0.00019075,2]
[322838508,1713382241281,-18170.50907585,0.00019075,2]
[322838509,1713382241291,-157.652,0.00019111,2]
[322838510,1713382241300,-300.5736933,0.00019178,2]
[322838511,1713382241310,-500.0,0.00019178,2]
[322838512,1713382241319,-641.86473905,0.00019178,2]
[322838513,1713382241330,-1500.0,0.00019178,2]
[322838514,1713382241341,-10400.31,0.00019178,2]
[322838515,1713382241352,-24504.02,0.00019178,2]
[322838516,1713382241362,-158.49,0.0001918,2]
[322838517,1713382241371,-158.49,0.0001918,2]
[322838518,1713382241381,-158.49,0.0001918,2]
[322838519,1713382241390,-3869.82317102,0.000192,2]
[322838520,1713382241399,-1949.18,0.000192,2]
[322838521,1713382241408,-2590.46,0.000192,2]
[322838522,1713382241418,-6232.04123738,0.00019336,2]
[322838523,1713382241427,-12176.42693304,0.00019408,2]
[322838524,1713382241436,-212.841894,0.00019452,2]
[322838525,1713382241446,-705.07,0.00019501,2]
[322838526,1713382241455,-170.37774006,0.00019532,2]
[322838527,1713382241465,-280.0,0.00019661,2]
[322838528,1713382241474,-436.0,0.00019661,2]
[322838529,1713382241483,-1949.0,0.00019661,2]
[322838530,1713382241493,-807.0,0.00019661,2]
[322838531,1713382241502,-609.0,0.00019661,2]
[322838532,1713382241512,-3079.0,0.00019661,2]
[322838533,1713382241521,-399.0,0.00019661,2]
[322838534,1713382241531,-1473.0,0.00019661,2]
[322838535,1713382241540,-2442.0,0.00019661,2]
[322838536,1713382241549,-211.39,0.00019661,2]
[322838537,1713382241558,-152.166,0.00019661,2]
[322838538,1713382241567,-214.0,0.00019661,2]
[322838539,1713382241577,-1639.0,0.00019661,2]
[322838540,1713382241586,-443.0,0.00019661,2]